bitfinex/quotes_BTCUSD_20241130
["timestamp","ask_amount","ask_price","bid_price","bid_amount"]
[1732933456879,0.10278843,96547.0,96546.0,0.14939311]
[1732933458469,0.10278843,96547.0,96546.0,0.14972674]
[1732933459756,0.10278843,96547.0,96546.0,0.25330374]
[1732933461520,0.10278843,96547.0,96546.0,0.10206403]
[1732933461990,0.10278843,96547.0,96546.0,0.18702474]
[1732933462454,0.10278843,96547.0,96546.0,0.29060174]
[1732933462663,0.10278843,96547.0,96546.0,0.25330145]
[1732933463151,0.10278843,96547.0,96546.0,0.14972445]
[1732933463817,0.10278843,96547.0,96546.0,0.25330145]
[1732933464371,0.05614122,96547.0,96546.0,0.25330145]
[1732933464991,0.05614122,96547.0,96546.0,0.14972445]
[1732933465388,0.05614122,96547.0,96546.0,0.14975101]
[1732933465768,0.05614122,96547.0,96546.0,0.25332801]
[1732933466767,0.15971722,96547.0,96546.0,0.14975101]
[1732933467822,0.05614122,96547.0,96546.0,0.14975101]
[1732933468031,0.15971722,96547.0,96546.0,0.14975101]
[1732933468964,0.05614122,96547.0,96546.0,0.14975101]
[1732933469358,0.15971722,96547.0,96546.0,0.14975101]
[1732933469568,0.05614122,96547.0,96546.0,0.14975101]
[1732933472664,0.15971722,96547.0,96546.0,0.14975101]
[1732933473778,0.15971722,96547.0,96546.0,0.14975102]
[1732933478950,0.28431722,96547.0,96546.0,0.14975102]
[1732933479214,0.28431722,96547.0,96546.0,0.13607312]
[1732933479448,0.28431722,96547.0,96546.0,0.11965558]
[1732933480190,0.29131722,96547.0,96546.0,0.11965558]
[1732933480638,0.28431722,96547.0,96546.0,0.11965558]
[1732933480853,0.29031722,96547.0,96546.0,0.11965558]
[1732933481301,0.24711722,96547.0,96546.0,0.11965558]
[1732933481929,0.17071722,96547.0,96546.0,0.11965558]
[1732933482357,0.17071722,96547.0,96546.0,0.09892105]
[1732933487892,0.17071722,96547.0,96546.0,0.11939478]
[1732933488449,0.17071722,96547.0,96546.0,0.09892105]
[1732933489132,0.17071722,96547.0,96546.0,0.11939337]
[1732933489369,0.17071722,96547.0,96546.0,0.0719686]
[1732933489658,0.17071722,96547.0,96546.0,0.12078033]
[1732933492508,0.17071722,96547.0,96546.0,0.073699]
[1732933496230,0.17071722,96547.0,96546.0,0.10030764]
[1732933496614,0.17071722,96547.0,96546.0,0.12077773]
[1732933503248,0.24801722,96547.0,96546.0,0.12077773]
[1732933504560,0.29611722,96547.0,96546.0,0.12077773]
[1732933508173,0.17071722,96547.0,96546.0,0.12077773]
[1732933511765,0.20187449,96547.0,96546.0,0.12077773]
[1732933512223,0.20188755,96547.0,96546.0,0.12077773]
[1732933513121,0.20188755,96547.0,96546.0,0.12083893]
[1732933514885,0.20188755,96547.0,96546.0,0.09734159]
[1732933516681,0.35188755,96547.0,96546.0,0.05020166]
[1732933516908,0.35188755,96547.0,96546.0,0.09733483]
[1732933520201,0.35188755,96547.0,96546.0,0.07684107]
[1732933522090,0.35188755,96547.0,96546.0,0.07683573]
[1732933523988,0.35188755,96547.0,96546.0,0.07683306]
[1732933527276,0.35188755,96547.0,96546.0,0.05020166]
[1732933527560,0.35188755,96547.0,96546.0,0.07683105]
[1732933528212,0.35188755,96547.0,96546.0,0.09731761]
[1732933530969,0.388913,96547.0,96546.0,0.09731761]
[1732933531658,0.37488755,96547.0,96546.0,0.07683105]
[1732933532366,0.35188755,96547.0,96546.0,0.07683105]
[1732933533077,0.37488755,96547.0,96546.0,0.07683105]
[1732933536985,0.35188755,96547.0,96546.0,0.07683105]
[1732933537208,0.35188755,96547.0,96546.0,0.09732886]
[1732933537933,0.35188755,96547.0,96546.0,0.08094112]
[1732933538152,0.35188755,96547.0,96546.0,0.0973448]
[1732933539477,5.282e-05,96556.0,96546.0,0.0973448]
[1732933539478,0.0017304,96574.0,96570.0,0.01]
[1732933539706,0.0017304,96574.0,96570.0,0.17472911]
[1732933539707,0.1037293,96571.0,96570.0,0.17472911]
[1732933539945,0.23835788,96571.0,96570.0,0.17497678]
[1732933540172,0.25831848,96571.0,96570.0,0.04747677]
[1732933540424,0.22711801,96571.0,96570.0,0.04747677]
[1732933540656,0.23611801,96571.0,96570.0,0.04747677]
[1732933540897,0.23611801,96571.0,96570.0,0.02697867]
[1732933541131,0.23812333,96571.0,96570.0,0.02697867]
[1732933542193,0.24012333,96571.0,96570.0,0.02697867]
[1732933542408,0.24412333,96571.0,96570.0,0.02697867]
[1732933542622,0.24212333,96571.0,96570.0,0.02697867]
[1732933542840,0.24712333,96571.0,96570.0,0.02797867]
[1732933543201,0.24312333,96571.0,96570.0,0.02797867]
[1732933543421,0.24712333,96571.0,96570.0,0.02797867]
[1732933545267,0.24712333,96571.0,96570.0,0.02697867]
[1732933545268,0.24212333,96571.0,96570.0,0.02697867]
[1732933545523,0.23898853,96571.0,96570.0,0.02697867]
[1732933545760,0.24398853,96571.0,96570.0,0.02540367]
[1732933546746,0.24698853,96571.0,96570.0,0.02540367]
[1732933551221,0.24698853,96571.0,96570.0,0.01140417]
[1732933555403,0.24698853,96571.0,96570.0,0.00133363]
[1732933555631,0.24698853,96571.0,96570.0,0.01140447]
[1732933555889,0.24698853,96571.0,96570.0,0.02751892]
[1732933557182,0.24698853,96571.0,96570.0,0.02924932]
[1732933558056,0.24698853,96571.0,96570.0,0.00306403]
[1732933559491,0.22644503,96571.0,96570.0,0.00306403]
[1732933560095,0.22644503,96571.0,96570.0,0.04938175]
[1732933560304,0.22644503,96571.0,96570.0,0.04938174]
[1732933566005,0.12289503,96571.0,96570.0,0.04938174]
[1732933566451,0.22644503,96571.0,96570.0,0.04938174]
[1732933567407,0.22344503,96571.0,96570.0,0.04938174]
[1732933567651,0.12389503,96571.0,96570.0,0.04938174]
[1732933567846,0.22744503,96571.0,96570.0,0.04938174]
[1732933568101,0.22344503,96571.0,96570.0,0.04938174]
[1732933568317,0.21844503,96571.0,96570.0,0.04838174]
[1732933568539,0.21844503,96571.0,96570.0,0.23893274]
[1732933568540,0.0070445,96571.0,96570.0,0.23893274]
[1732933568800,0.0070445,96571.0,96570.0,0.28523273]
[1732933569054,0.0017308,96573.0,96572.0,0.113549]
[1732933569264,0.0017308,96575.0,96574.0,0.236847]
[1732933569484,0.0017308,96575.0,96574.0,0.32381135]
[1732933569735,0.00179065,96575.0,96574.0,0.32381135]
[1732933570245,0.0017326,96581.0,96580.0,0.226841]
[1732933570474,0.0017326,96581.0,96580.0,0.30380534]
[1732933571160,0.0017326,96581.0,96580.0,0.27349231]
[1732933571626,0.0017326,96581.0,96580.0,0.26943475]
[1732933571883,0.0017326,96581.0,96580.0,0.31588615]
[1732933572114,0.0017326,96581.0,96580.0,0.28557312]
[1732933572350,0.0017326,96581.0,96580.0,0.31588615]
[1732933572906,0.01095141,96601.0,96600.0,0.01]
[1732933573141,0.0017314,96632.0,96600.0,0.01]
[1732933573142,0.02082182,96613.0,96607.0,0.113511]
[1732933573360,0.20635221,96612.0,96608.0,0.04639854]
[1732933573605,0.20635221,96612.0,96609.0,0.04639854]
[1732933573606,0.10284521,96612.0,96609.0,0.04639854]
[1732933573859,0.103508,96611.0,96610.0,0.04639854]
[1732933574080,0.20635321,96611.0,96610.0,0.04673211]
[1732933574307,0.10284521,96611.0,96610.0,0.12373211]
[1732933574566,0.20653184,96611.0,96610.0,0.04673211]
[1732933575217,0.10302484,96611.0,96610.0,0.04673211]
[1732933576096,0.10602484,96611.0,96610.0,0.04673211]
[1732933577209,0.10902484,96611.0,96610.0,0.04673211]
[1732933577419,0.21253184,96611.0,96610.0,0.04673211]
[1732933579026,0.00617963,96611.0,96610.0,0.0567321]
[1732933579242,0.00617963,96611.0,96610.0,0.1602401]
[1732933579480,0.00617963,96611.0,96610.0,0.16207203]
[1732933579966,0.00704483,96611.0,96610.0,0.31544104]
[1732933580173,0.103487,96630.0,96625.0,0.180492]
[1732933580392,0.206966,96634.0,96626.0,0.04639854]
[1732933580393,0.10284521,96629.0,96626.0,0.04639854]
[1732933580656,0.10284521,96630.0,96629.0,0.113488]
[1732933580909,0.10284521,96630.0,96629.0,0.15988654]
[1732933581355,0.01256119,96632.0,96631.0,0.01]
[1732933581617,0.01256119,96632.0,96631.0,0.15988454]
[1732933581857,0.01256119,96632.0,96631.0,0.05639854]
[1732933582077,0.11604619,96632.0,96631.0,0.02613838]
[1732933582327,0.11604619,96632.0,96631.0,0.05603566]
[1732933583008,0.0017314,96632.0,96631.0,0.16052166]
[1732933583235,0.0017314,96632.0,96631.0,0.05703566]
[1732933583750,0.0017314,96632.0,96631.0,0.16135322]
[1732933584236,0.27694784,96744.0,96631.0,0.05786722]
[1732933584531,0.103479,96638.0,96633.0,0.103483]
[1732933584738,0.10348,96637.0,96634.0,0.04603566]
[1732933584954,0.10284521,96638.0,96635.0,0.04603566]
[1732933585188,0.10348,96637.0,96636.0,0.04603566]
[1732933585845,0.09848,96637.0,96636.0,0.04603566]
[1732933586959,0.09948,96637.0,96636.0,0.04603566]
[1732933587195,0.10148,96637.0,96636.0,0.04603566]
[1732933589244,0.103484,96633.0,96632.0,0.0018314]
[1732933589484,0.103484,96633.0,96632.0,0.00033351]
[1732933589714,0.103484,96633.0,96632.0,0.04633207]
[1732933590189,0.20632921,96633.0,96632.0,0.04633207]
[1732933590673,0.20732921,96633.0,96632.0,0.04633207]
[1732933591587,0.20732921,96633.0,96632.0,0.04733207]
[1732933591810,0.20732921,96633.0,96632.0,0.04633207]
[1732933592069,0.20632921,96633.0,96632.0,0.04633207]
[1732933592258,0.21632921,96633.0,96632.0,0.06233883]
[1732933592589,0.21632921,96633.0,96632.0,0.02033397]
[1732933592819,0.21232921,96633.0,96632.0,0.0623752]
[1732933593035,0.21632921,96633.0,96632.0,0.0623752]
[1732933593249,0.21632921,96633.0,96632.0,0.04636255]
[1732933594155,0.3775782,96633.0,96632.0,0.01632107]
[1732933594399,0.4005782,96633.0,96632.0,0.01632107]
[1732933594646,0.4005782,96633.0,96632.0,0.0003335]
[1732933595046,0.3945782,96633.0,96632.0,0.0003335]
[1732933595275,0.3715782,96633.0,96632.0,0.0003335]
[1732933595490,0.3765782,96633.0,96632.0,0.0013335]
[1732933595954,0.3825782,96633.0,96632.0,0.0013335]
[1732933596835,0.02624899,96633.0,96632.0,0.0013335]
[1732933597059,0.015,96633.0,96632.0,0.1166499]
[1732933597738,0.015,96633.0,96632.0,0.0131649]
[1732933597954,0.015,96633.0,96632.0,0.1166499]
[1732933598174,0.006,96633.0,96632.0,0.1156499]
[1732933598390,0.0008651,96637.0,96632.0,0.01216489]
[1732933598617,0.0008651,96637.0,96634.0,0.103482]
[1732933598865,0.0008651,96637.0,96635.0,0.10531243]
[1732933599085,0.0008651,96637.0,96635.0,0.10564592]
[1732933599307,0.0008651,96637.0,96635.0,0.00216492]
[1732933599529,0.0018651,96637.0,96635.0,0.00216492]
[1732933599809,0.0018651,96637.0,96635.0,0.10564592]
[1732933600024,0.0018651,96637.0,96636.0,0.00773415]
[1732933600025,0.0008651,96637.0,96636.0,0.00773415]
[1732933600245,0.0008651,96637.0,96636.0,0.00806764]
[1732933600467,0.00017959,96640.0,96636.0,0.00989904]
[1732933600686,0.103478,96639.0,96637.0,0.00956553]
[1732933600931,0.103478,96639.0,96638.0,0.00773415]
[1732933601175,0.103478,96639.0,96638.0,0.00806764]
[1732933601829,0.105478,96639.0,96638.0,0.00806764]
[1732933602040,0.00017959,96640.0,96638.0,0.00806764]
[1732933602253,0.00017959,96640.0,96639.0,0.01992847]
[1732933602462,0.10365559,96640.0,96639.0,0.02799611]
[1732933603148,0.00217959,96640.0,96639.0,0.02799611]
[1732933603369,0.00217959,96640.0,96639.0,0.02799984]
[1732933603607,0.00017959,96640.0,96639.0,0.02799984]
[1732933603821,0.10565559,96640.0,96639.0,0.02799984]
[1732933604253,0.10765559,96640.0,96639.0,0.04394447]
[1732933604639,0.00417959,96640.0,96639.0,0.04394447]
[1732933604905,0.10765559,96640.0,96639.0,0.04394447]
[1732933605456,0.00417959,96640.0,96639.0,0.04394447]
[1732933606309,0.00417959,96640.0,96639.0,0.05390916]
[1732933606498,0.00417959,96640.0,96639.0,0.05391185]
[1732933606939,0.00417959,96640.0,96639.0,0.00807032]
[1732933607157,0.00417959,96640.0,96639.0,0.16738864]
[1732933607419,0.00417959,96640.0,96639.0,0.16921993]
[1732933608515,0.00217959,96640.0,96639.0,0.16921992]
[1732933608742,0.00017959,96640.0,96639.0,0.17321992]
[1732933610405,0.00017959,96640.0,96639.0,0.1742213]
[1732933611456,0.00017959,96640.0,96639.0,0.17422129]
[1732933614210,0.00017959,96640.0,96639.0,0.17422035]
[1732933614463,0.00017959,96640.0,96639.0,0.17422034]
[1732933617193,0.00104419,96640.0,96639.0,0.07074334]
[1732933617416,0.00104419,96640.0,96639.0,0.17422034]
[1732933617663,0.00104419,96640.0,96639.0,0.17421654]
[1732933618122,0.00104419,96640.0,96639.0,0.25131654]
[1732933618347,0.0008652,96644.0,96639.0,0.25131654]
[1732933618348,0.0008652,96644.0,96643.0,0.103473]
[1732933618575,0.0008652,96644.0,96643.0,0.14928074]
[1732933618781,0.0008652,96644.0,96643.0,0.16921244]
[1732933618995,0.1043372,96644.0,96643.0,0.01216464]
[1732933619215,0.1043372,96644.0,96643.0,0.01806749]
[1732933619430,0.1043372,96644.0,96643.0,0.01033344]
[1732933619431,0.0008652,96644.0,96643.0,0.01033344]
[1732933619878,0.0008652,96644.0,96643.0,0.05607061]
[1732933620345,0.0008652,96644.0,96643.0,0.05807065]
[1732933620346,0.1043372,96644.0,96643.0,0.05807065]
[1732933620574,0.20718241,96644.0,96643.0,0.05807065]
[1732933620805,0.20718241,96644.0,96643.0,0.05807064]
[1732933621709,0.20718241,96644.0,96643.0,0.03222028]
[1732933621954,0.20718241,96644.0,96643.0,0.0580721]
[1732933623316,0.20718241,96644.0,96643.0,0.0480721]
[1732933623541,0.20718241,96644.0,96643.0,0.0639908]
[1732933624467,0.20718241,96644.0,96643.0,0.0480721]
[1732933626254,0.21882641,96644.0,96643.0,0.0460721]
[1732933626472,0.21882641,96644.0,96643.0,0.04607209]
[1732933626694,0.22082641,96644.0,96643.0,0.04607209]
[1732933627392,0.22182641,96644.0,96643.0,0.04607209]
[1732933627852,0.22382641,96644.0,96643.0,0.04607209]
[1732933628080,0.21882641,96644.0,96643.0,0.04620758]
[1732933628521,0.22082641,96644.0,96643.0,0.04620758]
[1732933628957,0.21882641,96644.0,96643.0,0.04620758]
[1732933629468,0.22082641,96644.0,96643.0,0.04620758]
[1732933629705,0.21882641,96644.0,96643.0,0.04620758]
[1732933630613,0.21682641,96644.0,96643.0,0.04620758]
[1732933631045,0.21782641,96644.0,96643.0,0.04620758]
[1732933631485,0.21782641,96644.0,96643.0,0.04620017]
[1732933633276,0.20818241,96644.0,96643.0,0.04620017]
[1732933634357,0.21784369,96644.0,96643.0,0.04620017]
[1732933637489,0.21784369,96644.0,96643.0,0.05620017]
[1732933637725,0.20818241,96644.0,96643.0,0.05620017]
[1732933638169,0.20718241,96644.0,96643.0,0.05620017]
[1732933638584,0.20818241,96644.0,96643.0,0.05620017]
[1732933638713,0.20818241,96644.0,96643.0,0.05620016]
[1732933639988,0.20718241,96644.0,96643.0,0.05620016]
[1732933640414,0.20718241,96644.0,96643.0,0.05820016]
[1732933645448,0.21684452,96644.0,96643.0,0.05820574]
[1732933645719,0.20718241,96644.0,96643.0,0.05820573]
[1732933646042,0.21684452,96644.0,96643.0,0.05820573]
[1732933646239,0.20718241,96644.0,96643.0,0.05820573]
[1732933646461,0.20718241,96644.0,96643.0,0.07416391]
[1732933647060,0.20718241,96644.0,96643.0,0.05820573]
[1732933647269,0.21684452,96644.0,96643.0,0.05621111]
[1732933647475,0.21018241,96644.0,96643.0,0.04621111]
[1732933647676,0.25758241,96644.0,96643.0,0.04621111]
[1732933647872,0.25658241,96644.0,96643.0,0.04621111]
[1732933648104,0.25458241,96644.0,96643.0,0.04621111]
[1732933649001,0.20718241,96644.0,96643.0,0.04621111]
[1732933649811,0.20818241,96644.0,96643.0,0.04621111]
[1732933650024,0.20818241,96644.0,96643.0,0.05621111]
[1732933650232,0.20718241,96644.0,96643.0,0.05621111]
[1732933650647,0.20818241,96644.0,96643.0,0.05621111]
[1732933651063,0.20718241,96644.0,96643.0,0.05621111]
[1732933651298,0.20818241,96644.0,96643.0,0.0562111]
[1732933652478,0.20818241,96644.0,96643.0,0.0572111]
[1732933652698,0.20818241,96644.0,96643.0,0.0562111]
[1732933652915,0.20718241,96644.0,96643.0,0.0562111]
[1732933653134,0.20718241,96644.0,96643.0,0.0572111]
[1732933653367,0.20718241,96644.0,96643.0,0.0562111]
[1732933653803,0.20718241,96644.0,96643.0,0.0582111]
[1732933663087,0.1043372,96644.0,96643.0,0.0582111]
[1732933663288,0.0008652,96644.0,96643.0,0.0582111]
[1732933663541,0.1043372,96644.0,96643.0,0.05821109]
[1732933664290,0.0008652,96644.0,96643.0,0.05821109]
[1732933664489,0.1043372,96644.0,96643.0,0.05821109]
[1732933666625,0.20818241,96644.0,96643.0,0.04821109]
[1732933667029,0.20718241,96644.0,96643.0,0.04621109]
[1732933667392,0.20818241,96644.0,96643.0,0.04621109]
[1732933668119,0.20718241,96644.0,96643.0,0.04621109]
[1732933669683,0.20818241,96644.0,96643.0,0.04621109]
[1732933669898,0.20818241,96644.0,96643.0,0.04624406]
[1732933670118,0.20718241,96644.0,96643.0,0.04624406]
[1732933670562,0.20818241,96644.0,96643.0,0.04624406]
[1732933675715,0.20818241,96644.0,96643.0,0.04624405]
[1732933676917,0.20818241,96644.0,96643.0,0.04623934]
[1732933680413,0.20818241,96644.0,96643.0,0.01624144]
[1732933680647,0.20818241,96644.0,96643.0,0.00033337]
[1732933681086,0.20818241,96644.0,96643.0,0.04606978]
[1732933681777,0.20718241,96644.0,96643.0,0.00033337]
[1732933681984,0.21218241,96644.0,96643.0,0.02618309]
[1732933683074,0.52848534,96644.0,96643.0,0.00548809]
[1732933683265,0.15,96643.0,96640.0,2.9e-07]
[1732933683494,0.023,96638.0,96637.0,8e-08]
[1732933683727,0.53925543,96638.0,96637.0,8e-08]
[1732933685511,0.53925543,96638.0,96637.0,0.00100008]
[1732933685512,0.54825543,96638.0,96637.0,0.00100008]
[1732933685728,0.67185595,96638.0,96637.0,0.00100008]
[1732933685944,0.56902449,96638.0,96637.0,8e-08]
[1732933686165,0.56902449,96638.0,96637.0,0.00100008]
[1732933686166,0.57802449,96638.0,96637.0,0.00100008]
[1732933686381,0.404884,96633.0,96632.0,0.00168928]
[1732933686601,0.50772921,96633.0,96632.0,0.00168928]
[1732933686893,0.53857958,96633.0,96632.0,0.00168928]
[1732933687527,0.50772921,96633.0,96632.0,0.00168928]
[1732933688411,0.51672921,96633.0,96632.0,0.00268928]
[1732933688631,0.51672921,96633.0,96632.0,0.00168928]
[1732933689071,0.51672921,96633.0,96632.0,0.00268928]
[1732933689072,0.52572921,96633.0,96632.0,0.00268928]
[1732933689761,0.53372921,96633.0,96632.0,0.00268928]
[1732933695000,0.53372921,96633.0,96632.0,0.01258251]
[1732933696317,0.53372921,96633.0,96632.0,0.01258334]
[1732933698360,0.53372921,96633.0,96632.0,0.02813089]
[1732933698579,0.53372921,96633.0,96632.0,0.01258334]
[1732933698787,0.53372921,96633.0,96632.0,0.01240572]
[1732933699463,0.53372921,96633.0,96632.0,0.02795423]
[1732933700327,0.53372921,96633.0,96632.0,0.01240572]
[1732933706409,0.53372921,96633.0,96632.0,0.02797995]
[1732933708983,0.53901415,96633.0,96632.0,0.02797995]
[1732933709183,0.53901415,96633.0,96632.0,0.02219055]
[1732933709410,0.53901415,96633.0,96632.0,0.0475396]
[1732933712555,0.53901415,96633.0,96632.0,0.02803833]
[1732933713416,0.53901415,96633.0,96632.0,0.0475455]
[1732933714560,0.56993633,96633.0,96632.0,0.02803833]
[1732933717739,0.61390369,96633.0,96632.0,0.00268928]
[1732933717991,0.56993633,96633.0,96632.0,0.02804875]
[1732933719568,0.56993633,96633.0,96632.0,0.0474086]
[1732933720524,0.56993633,96633.0,96632.0,0.03172963]
[1732933720773,0.48723633,96633.0,96632.0,0.04721743]
[1732933720995,0.44153633,96633.0,96632.0,0.04721743]
[1732933722171,0.23761415,96633.0,96632.0,0.17651743]
[1732933722620,0.23232921,96633.0,96632.0,0.17651743]
[1732933722853,0.15972207,96633.0,96632.0,0.17551743]
[1732933723087,0.15972207,96633.0,96632.0,0.18551743]
[1732933723088,0.10284521,96633.0,96632.0,0.18551743]
[1732933723320,0.22132921,96633.0,96632.0,0.18651743]
[1732933723551,0.21232921,96633.0,96632.0,0.18551743]
[1732933723785,0.20632921,96633.0,96632.0,0.18551743]
[1732933724027,0.20632921,96633.0,96632.0,0.18651743]
[1732933724752,0.20632921,96633.0,96632.0,0.18551743]
[1732933725427,0.0008652,96637.0,96634.0,0.01]
[1732933725639,0.0008652,96637.0,96636.0,0.240881]
[1732933725863,0.0008652,96637.0,96636.0,0.28540915]
[1732933726545,0.0008652,96637.0,96636.0,0.31442285]
[1732933726758,0.0028652,96637.0,96636.0,0.31442285]
[1732933727194,0.0028652,96637.0,96636.0,0.32042285]
[1732933727425,0.0028652,96637.0,96636.0,0.29140915]
[1732933727645,0.0028652,96637.0,96636.0,0.29340915]
[1732933727927,0.0017308,96658.0,96647.0,0.400869]
[1732933728151,0.0017308,96658.0,96647.0,0.44539715]
[1732933729358,0.0017308,96658.0,96647.0,0.45239715]
[1732933729359,0.0027308,96648.0,96647.0,0.45239715]
[1732933729594,0.0027308,96648.0,96647.0,0.45439715]
[1732933729802,0.0027308,96648.0,96647.0,0.44739715]
[1732933729803,0.0017308,96648.0,96647.0,0.44739715]
[1732933730028,0.0027308,96648.0,96647.0,0.45218962]
[1732933730458,0.0037308,96648.0,96647.0,0.45618962]
[1732933731118,0.103452,96663.0,96647.0,0.45618962]
[1732933731119,0.0017306,96674.0,96667.0,0.283447]
[1732933731337,0.0017306,96674.0,96667.0,0.40146762]
[1732933732225,0.00232932,96668.0,96667.0,0.40546762]
[1732933732683,0.00332932,96668.0,96667.0,0.41046762]
[1732933733182,0.00432932,96668.0,96667.0,0.41546762]
[1732933733388,0.00432932,96668.0,96667.0,0.41554576]
[1732933736844,0.00432932,96668.0,96667.0,0.41547879]
[1732933737513,0.00432932,96668.0,96667.0,0.44449249]
[1732933737725,0.00432932,96668.0,96667.0,0.41547879]
[1732933737929,0.10342,96693.0,96678.0,0.186236]
[1732933738136,0.0994844,96693.0,96678.0,0.12873939]
[1732933738349,0.20626621,96692.0,96685.0,0.103427]
[1732933738566,0.10764484,96692.0,96686.0,0.04410894]
[1732933738945,0.103423,96690.0,96687.0,0.04410894]
[1732933739160,0.103423,96690.0,96688.0,0.04410894]
[1732933739394,0.103423,96690.0,96685.0,0.103427]
[1732933739395,0.00479979,96689.0,96685.0,0.10525749]
[1732933739611,0.00479979,96689.0,96686.0,0.0433438]
[1732933739825,0.00479979,96689.0,96687.0,0.0433438]
[1732933740085,0.00479979,96689.0,96688.0,0.0433438]
[1732933740309,0.00479979,96689.0,96685.0,0.10525749]
[1732933740310,0.10822379,96689.0,96685.0,0.00183049]
[1732933740540,0.10822379,96689.0,96680.0,0.206868]
[1732933740541,0.10822379,96689.0,96688.0,0.04334374]
[1732933740761,0.10822379,96689.0,96682.0,0.206863]
[1732933740762,0.00479979,96689.0,96685.0,0.00183049]
[1732933740977,0.00479979,96689.0,96681.0,0.103432]
[1732933741197,0.103427,96687.0,96682.0,0.04517508]
[1732933741411,0.103425,96688.0,96683.0,0.14677458]
[1732933741625,0.00479984,96686.0,96684.0,0.04517509]
[1732933741869,0.206847,96690.0,96686.0,0.01]
[1732933741870,0.1082256,96687.0,96686.0,0.01]
[1732933742052,0.103426,96687.0,96686.0,0.05334458]
[1732933742600,0.103426,96687.0,96686.0,0.05334102]
[1732933743024,0.103426,96687.0,96686.0,0.05534102]
[1732933743292,0.103426,96687.0,96686.0,0.04026614]
[1732933743521,0.103426,96687.0,96686.0,0.05534102]
[1732933744345,0.206847,96690.0,96686.0,0.05534102]
[1732933744570,0.206847,96690.0,96687.0,0.04334102]
[1732933744791,0.1042891,96689.0,96688.0,0.04334102]
[1732933745872,0.1042891,96689.0,96688.0,0.05334102]
[1732933745873,0.20713431,96689.0,96688.0,0.05334102]
[1732933746110,0.206851,96688.0,96684.0,0.01]
[1732933746362,0.10371031,96689.0,96680.0,0.02829064]
[1732933746363,0.103432,96681.0,96680.0,0.01]
[1732933746586,0.20627721,96681.0,96680.0,0.08168068]
[1732933748269,0.20727721,96681.0,96680.0,0.08168068]
[1732933748717,0.20827721,96681.0,96680.0,0.08190351]
[1732933750661,0.20827721,96681.0,96680.0,0.0536007]
[1732933751491,0.21318167,96681.0,96680.0,0.07200305]
[1732933751704,0.21318167,96681.0,96680.0,0.0436007]
[1732933752172,0.21318167,96681.0,96680.0,0.0536007]
[1732933752379,0.21318167,96681.0,96680.0,0.08203178]
[1732933752820,0.21318167,96681.0,96680.0,0.0536007]
[1732933753035,0.1665974,96681.0,96680.0,0.0536007]
[1732933755850,0.2453974,96681.0,96680.0,0.0536007]
[1732933756089,0.2453974,96681.0,96680.0,0.0553301]
[1732933756528,0.2453974,96681.0,96680.0,0.0552781]
[1732933757367,0.2453974,96681.0,96680.0,0.08381237]
[1732933757807,0.2453974,96681.0,96680.0,0.0552781]
[1732933758876,0.2453974,96681.0,96680.0,0.08291919]
[1732933760142,0.1665974,96681.0,96680.0,0.07275468]
[1732933760724,0.20474064,96681.0,96680.0,0.07275468]
[1732933761806,0.20474064,96681.0,96680.0,0.04511359]
[1732933762220,0.10189543,96681.0,96680.0,0.04511359]
[1732933762859,0.10189543,96681.0,96680.0,0.07276768]
[1732933763284,0.11280657,96681.0,96680.0,0.07276768]
[1732933763493,0.11280657,96681.0,96680.0,0.07277671]
[1732933763935,0.21565178,96681.0,96680.0,0.07277671]
[1732933764162,0.21765178,96681.0,96680.0,0.07277671]
[1732933764354,0.21765178,96681.0,96680.0,0.04512262]
[1732933764577,0.21665178,96681.0,96680.0,0.04512262]
[1732933764783,0.21665178,96681.0,96680.0,0.07277789]
[1732933765005,0.21665178,96681.0,96680.0,0.07377789]
[1732933765205,0.21665178,96681.0,96680.0,0.04612262]
[1732933767236,0.21665178,96681.0,96680.0,0.01295223]
[1732933767450,0.21665178,96681.0,96680.0,0.04612591]
[1732933768021,0.11966081,96681.0,96680.0,0.04612591]
[1732933768231,0.22495761,96681.0,96680.0,0.04512591]
[1732933768646,0.22595761,96681.0,96680.0,0.05434072]
[1732933768891,0.22495761,96681.0,96680.0,0.05434072]
[1732933769878,0.22295761,96681.0,96680.0,0.05434072]
[1732933770322,0.22395761,96681.0,96680.0,0.05434072]
[1732933770771,0.22295761,96681.0,96680.0,0.05434072]
[1732933771352,0.22295761,96681.0,96680.0,0.05534072]
[1732933773510,0.22295761,96681.0,96671.0,0.41084241]
[1732933773511,0.11952561,96681.0,96673.0,0.01]
[1732933773697,0.178546,96668.0,96667.0,0.00059852]
[1732933774002,0.103456,96659.0,96658.0,0.01475327]
[1732933774171,0.10284521,96659.0,96656.0,0.01475583]
[1732933774380,0.10284521,96658.0,96651.0,0.01]
[1732933774592,0.103463,96652.0,96651.0,0.01]
[1732933774800,0.20630821,96652.0,96651.0,0.01]
[1732933775019,0.21119738,96652.0,96651.0,0.01]
[1732933777741,0.21519738,96652.0,96651.0,0.01]
[1732933778368,0.21119738,96652.0,96651.0,0.01]
[1732933778582,0.11035217,96652.0,96651.0,0.01]
[1732933778795,0.11235217,96652.0,96651.0,0.01]
[1732933778922,0.12364144,96652.0,96651.0,0.01]
[1732933779121,0.12164144,96652.0,96651.0,0.01]
[1732933780079,0.11964144,96652.0,96651.0,0.01]
[1732933780537,0.12164144,96652.0,96651.0,0.01]
[1732933780748,0.12264144,96652.0,96651.0,0.01]
[1732933780970,0.00588917,96652.0,96651.0,0.1333296]
[1732933781141,0.001,96652.0,96651.0,0.23862548]
[1732933781372,0.002,96652.0,96651.0,0.2367946]
[1732933781632,0.001,96652.0,96651.0,0.25442901]
[1732933781868,0.103456,96659.0,96652.0,0.103463]
[1732933782058,0.103454,96661.0,96653.0,0.12109641]
[1732933782285,0.103454,96661.0,96654.0,0.01763441]
[1732933782286,0.103457,96659.0,96654.0,0.01763441]
[1732933782509,0.103454,96661.0,96655.0,0.01763441]
[1732933782733,0.206908,96661.0,96656.0,0.01763441]
[1732933782915,0.206908,96661.0,96653.0,0.103462]
[1732933782916,0.103455,96660.0,96657.0,0.01763441]
[1732933783153,0.103455,96660.0,96658.0,0.01763441]
[1732933783343,0.103453,96662.0,96659.0,0.01410554]
[1732933783547,0.103453,96662.0,96660.0,0.03173904]
[1732933783772,0.10405152,96663.0,96662.0,0.01]
[1732933784054,0.10405152,96663.0,96662.0,0.04173904]
[1732933784232,0.00059852,96663.0,96662.0,0.04173904]
[1732933784649,0.00059852,96663.0,96662.0,0.04173855]
[1732933785536,0.00059852,96663.0,96662.0,0.05155389]
[1732933785968,0.00059852,96663.0,96662.0,0.05338479]
[1732933786178,0.00059852,96663.0,96662.0,0.05155389]
[1732933786749,0.00059852,96663.0,96662.0,0.05055389]
[1732933786959,0.00059852,96663.0,96662.0,0.05455389]
[1732933787540,0.00059852,96663.0,96662.0,0.05538482]
[1732933787759,0.10405052,96663.0,96662.0,0.05355389]
[1732933787977,0.10405052,96663.0,96662.0,0.05455389]
[1732933788400,0.10405052,96663.0,96662.0,0.04574215]
[1732933788611,0.10405052,96663.0,96662.0,0.05455819]